bitfinex/quotes_ETHUSD_20250724
["timestamp","ask_amount","ask_price","bid_price","bid_amount"]
[1753381722722,11.49721338,3735.2,3735.1,0.001]
[1753381723815,10.21160029,3735.2,3735.1,0.001]
[1753381724015,9.46177505,3735.2,3735.1,0.001]
[1753381724211,10.0370399,3735.2,3735.1,0.001]
[1753381726825,4.5565399,3735.2,3735.1,0.4517]
[1753381727001,4.5565399,3735.2,3735.1,3.12900448]
[1753381727002,8.11227505,3735.2,3735.1,3.12900448]
[1753381727207,8.6875399,3735.2,3735.1,3.12900448]
[1753381727528,4.5565399,3735.2,3735.1,3.12900448]
[1753381727739,8.11227505,3735.2,3735.1,3.12900448]
[1753381728415,8.68800212,3735.2,3735.1,3.12900448]
[1753381728620,0.98127505,3735.2,3735.1,3.59830448]
[1753381728798,0.98127505,3735.2,3735.1,3.14760448]
[1753381728799,5.11227505,3735.2,3735.1,3.14760448]
[1753381729005,5.11227505,3735.2,3735.1,3.59830448]
[1753381730236,5.11227505,3735.2,3735.1,0.001]
[1753381730451,5.62350256,3735.2,3735.1,0.001]
[1753381730622,5.11227505,3735.2,3735.1,0.4517]
[1753381730810,5.11227505,3735.2,3735.1,3.12900448]
[1753381733708,5.11227505,3735.2,3735.1,3.59830448]
[1753381735217,5.11127505,3735.2,3735.1,3.59830448]
[1753381735831,4.2636,3735.2,3735.1,3.59830448]
[1753381736785,4.2636,3735.2,3735.1,3.12900448]
[1753381736938,4.2636,3735.2,3735.1,0.001]
[1753381737142,4.2636,3735.2,3735.1,3.12900448]
[1753381740580,0.13360001,3735.2,3735.1,4.97704386]
[1753381740764,1.54464642,3736.3,3736.2,2.67651624]
[1753381740945,4.98225613,3736.3,3736.2,3.59651624]
[1753381741145,5.23242823,3736.3,3736.2,3.12721624]
[1753381741382,0.55,3736.2,3735.5,0.4507]
[1753381741688,4.13,3736.1,3736.0,2.67665952]
[1753381741905,4.5137721,3736.1,3736.0,2.67665952]
[1753381742042,4.5137721,3736.1,3736.0,3.59665952]
[1753381743198,4.51394608,3736.1,3736.0,3.12735952]
[1753381743402,4.51394608,3736.1,3736.0,2.67665952]
[1753381744448,1.3679,3736.0,3735.3,2.67713216]
[1753381744673,4.2626,3735.9,3735.3,2.67713216]
[1753381744847,0.1336,3735.4,3735.1,0.4703]
[1753381745046,4.2626,3735.4,3735.3,2.67716113]
[1753381745255,4.2626,3735.4,3735.3,3.14646113]
[1753381745461,4.2626,3735.4,3735.3,3.59716113]
[1753381745900,1.04650778,3736.4,3735.3,1.62265088]
[1753381745901,0.7603,3736.3,3735.3,1.62265088]
[1753381746061,7.129,3736.2,3736.1,2.67658788]
[1753381746253,7.37935166,3736.2,3736.1,3.12728788]
[1753381746607,7.51295166,3736.2,3736.1,3.12728788]
[1753381746751,3.96016069,3736.2,3736.1,3.12728788]
[1753381746951,7.51295166,3736.2,3736.1,3.12728788]
[1753381747181,8.08916069,3736.2,3736.1,2.67658788]
[1753381747380,8.08916069,3736.2,3735.9,2.67673117]
[1753381747557,0.25035166,3736.1,3736.0,2.67663689]
[1753381747954,0.38395166,3736.1,3735.9,2.67671083]
[1753381748288,7.129,3736.2,3735.9,2.67671083]
[1753381748490,0.1336,3736.0,3735.9,2.67671083]
[1753381748690,4.2626,3736.0,3735.9,2.67671083]
[1753381748872,4.2626,3736.0,3735.9,3.12741083]
[1753381749077,4.2626,3736.0,3735.9,2.67673117]
[1753381750083,4.2626,3736.0,3735.8,2.67677798]
[1753381750391,0.1336,3735.8,3735.7,2.67687448]
[1753381750593,4.2626,3735.8,3735.7,2.67687448]
[1753381752286,4.2626,3735.8,3735.7,3.12757448]
[1753381753109,0.1336,3735.8,3735.7,3.12757448]
[1753381753272,4.2616,3735.8,3735.7,3.59687448]
[1753381753668,4.2616,3735.8,3735.7,3.12757448]
[1753381754997,4.2616,3735.8,3735.7,2.67687448]
[1753381755793,4.2616,3735.8,3735.7,11.46412448]
[1753381756168,4.2616,3735.8,3735.7,11.92242448]
[1753381756423,0.1336,3735.8,3735.7,11.92242448]
[1753381756581,4.2616,3735.8,3735.7,14.4691644]
[1753381758181,0.1336,3735.8,3735.7,14.4691644]
[1753381758383,4.2616,3735.8,3735.7,14.4691644]
[1753381759906,0.1336,3735.8,3735.7,14.4691644]
[1753381760081,0.2504011,3736.6,3736.4,2.67633094]
[1753381760401,4.127,3736.5,3736.2,2.67646224]
[1753381760583,0.1336,3736.3,3736.2,2.67646224]
[1753381761515,0.1336,3736.3,3736.1,0.4644]
[1753381761516,0.1336,3736.3,3736.1,2.67657477]
[1753381761720,0.1336,3736.3,3736.0,2.6766483]
[1753381761721,4.127,3736.2,3736.0,2.6766483]
[1753381762187,4.127,3736.2,3735.8,2.6767441]
[1753381762188,0.762,3736.1,3735.8,2.6767441]
[1753381762521,0.1336,3735.9,3735.8,2.67680282]
[1753381762720,0.1336,3735.9,3735.8,3.13510282]
[1753381762900,4.2606,3735.9,3735.8,3.13510282]
[1753381763097,4.2606,3735.9,3735.8,3.59950282]
[1753381765625,4.51111531,3735.9,3735.8,3.59950282]
[1753381766026,4.2606,3735.9,3735.8,3.59950282]
[1753381767123,4.51115759,3735.9,3735.8,3.59950282]
[1753381767518,4.51115759,3735.9,3735.8,3.14120282]
[1753381768021,4.51115759,3735.9,3735.8,2.67680282]
[1753381768930,4.51115759,3735.9,3735.8,3.14120282]
[1753381770833,0.38415759,3735.9,3735.8,3.14120282]
[1753381771131,4.2606,3735.9,3735.8,3.59950282]
[1753381771331,4.51115759,3735.9,3735.8,3.59950282]
[1753381771910,4.51015759,3735.9,3735.8,3.59950282]
[1753381772111,0.1336,3735.9,3735.8,5.40447555]
[1753381773011,0.1356,3735.9,3735.8,5.40447555]
[1753381773931,0.72063499,3736.5,3736.4,2.67637297]
[1753381774135,0.25075601,3736.7,3736.6,2.67622972]
[1753381774330,2.5862233,3736.8,3736.7,2.6761581]
[1753381774632,1.99918831,3736.8,3736.7,3.1405581]
[1753381774833,1.99918831,3736.8,3736.6,2.67621108]
[1753381775006,1.99918831,3736.8,3736.7,2.6761581]
[1753381775332,5.99158831,3736.8,3736.7,2.6761581]
[1753381775628,6.37574953,3736.8,3736.7,2.6761581]
[1753381776734,6.37574953,3736.8,3736.4,0.4644]
[1753381776903,0.25056122,3736.7,3736.4,2.67635184]
[1753381777098,0.1336,3736.5,3736.4,2.67635887]
[1753381777337,4.2596,3736.5,3736.4,2.67635887]
[1753381777500,4.51016122,3736.5,3736.0,3.14104929]
[1753381777706,0.1336,3736.3,3736.2,2.67650439]
[1753381777939,0.72231056,3736.4,3736.2,2.67650439]
[1753381778100,0.1336,3736.3,3736.2,2.67651624]
[1753381779004,0.1336,3736.3,3736.2,3.14091624]
[1753381779235,4.2586,3736.3,3736.2,3.14091624]
[1753381779406,4.50910603,3736.3,3736.2,3.14091624]
[1753381780006,4.50910603,3736.3,3736.2,2.67651624]
[1753381780904,4.50910603,3736.3,3736.0,2.67665125]
[1753381781241,0.1336,3736.1,3736.0,2.67665125]
[1753381781400,0.1336,3736.1,3735.7,8.32285]
[1753381781604,0.72230863,3736.2,3735.7,8.32285]
[1753381781605,4.9074,3736.0,3735.8,2.67675524]
[1753381781805,4.9074,3736.0,3735.7,8.32285]
[1753381781806,4.9074,3736.0,3735.9,2.67673117]
[1753381782122,4.37554335,3736.0,3735.9,2.67673117]
[1753381782327,4.50914335,3736.0,3735.9,2.67673117]
[1753381782708,4.50914335,3736.0,3735.9,3.14113117]
[1753381782909,4.2586,3736.0,3735.9,3.14113117]
[1753381783439,4.2586,3736.0,3735.9,3.59943117]
[1753381783637,0.1336,3736.0,3735.9,5.8217458]
[1753381784940,0.002,3736.8,3736.7,2.6761581]
[1753381785140,0.1356,3736.8,3736.7,3.5988581]
[1753381786149,1e-08,3736.9,3736.8,3.44318649]
[1753381786310,1e-08,3736.9,3736.8,7.75278649]
[1753381786509,1e-08,3736.9,3736.8,8.57748649]
[1753381787143,1e-08,3737.1,3737.0,3.50524327]
[1753381787442,1e-08,3737.1,3737.0,13.8106156]
[1753381787643,1e-08,3737.1,3737.0,16.86023122]
[1753381787943,0.25010435,3738.0,3737.9,2.67529896]
[1753381788143,1.76477569,3739.0,3737.9,2.67529896]
[1753381788144,0.25009988,3738.7,3738.5,2.6748696]
[1753381788334,4.124,3738.9,3738.5,2.6748696]
[1753381788537,0.79817194,3738.6,3738.5,3.1635696]
[1753381789046,0.79817194,3738.6,3738.5,2.6748696]
[1753381789449,1.29038913,3738.6,3738.3,2.67494247]
[1753381789649,1.15678913,3738.6,3738.3,2.67494247]
[1753381789948,0.9245,3738.4,3738.0,2.6752057]
[1753381790145,0.7909,3738.4,3738.0,2.6752057]
[1753381790452,0.7909,3738.4,3737.8,0.4887]
[1753381790453,0.1336,3738.2,3737.8,7.28706227]
[1753381790745,0.23857891,3738.3,3738.1,2.67512807]
[1753381791253,0.1336,3738.2,3738.1,2.67512807]
[1753381791748,0.1336,3738.2,3737.5,4.123]
[1753381791958,0.23857891,3738.3,3737.7,2.67543945]
[1753381792248,0.4381,3738.1,3737.8,2.67536885]
[1753381792433,0.79609986,3738.2,3737.8,2.67536885]
[1753381792766,0.1336,3737.9,3737.3,0.4887]
[1753381792924,0.55,3738.0,3737.6,2.67544481]
[1753381793109,0.55,3738.0,3737.7,2.6754247]
[1753381793311,0.1336,3737.8,3737.7,2.6754247]
[1753381793512,0.1336,3737.8,3737.3,0.4887]
[1753381793513,0.1336,3737.8,3737.5,2.67551934]
[1753381793749,0.59071999,3737.9,3737.5,2.67551934]
[1753381793946,0.1336,3737.6,3737.5,2.67551934]
[1753381794267,0.55,3737.5,3736.8,0.8248]
[1753381794431,0.55,3737.5,3737.4,2.67565687]
[1753381794615,0.7611,3737.8,3737.4,2.67565687]
[1753381794616,0.55,3737.7,3737.4,2.67565687]
[1753381794815,0.6836,3737.5,3737.4,2.67565687]
[1753381796442,0.1336,3737.5,3737.4,3.16435687]
[1753381796656,0.1336,3737.5,3737.4,3.62835687]
[1753381797452,0.1336,3737.5,3737.4,4.39875687]
[1753381798876,0.002,3737.9,3737.8,2.67537053]
[1753381799269,0.002,3737.9,3737.8,5.03882336]
[1753381801598,0.002,3737.9,3737.8,4.40847053]
[1753381801878,0.002,3737.9,3737.8,7.28607053]
[1753381802049,0.1356,3737.9,3737.8,7.28607053]
[1753381802244,0.1356,3737.9,3737.8,7.75007053]
[1753381802457,0.1356,3737.9,3737.8,2.67537053]
[1753381803081,0.1356,3737.9,3737.8,3.62807053]
[1753381803376,0.1356,3737.9,3737.8,2.67537053]
[1753381803779,0.7644,3737.8,3737.7,2.67543377]
[1753381804201,0.898,3737.8,3737.7,2.67543377]
[1753381804879,0.1336,3737.8,3737.7,2.67543377]
[1753381807090,0.1336,3737.8,3737.7,2.67544211]
[1753381807392,0.55,3737.7,3737.2,2.67573369]
[1753381807678,0.55,3737.2,3737.1,2.67587166]
[1753381807884,0.6836,3737.2,3737.1,2.67587166]
[1753381808249,0.6836,3737.2,3736.7,0.4887]
[1753381808250,0.6836,3737.2,3737.0,2.67592951]
[1753381808453,0.55,3737.2,3737.1,2.67587166]
[1753381808905,0.832,3737.6,3736.9,0.464]
[1753381809188,1.2953393,3737.6,3737.2,2.67580006]
[1753381809384,4.121,3737.6,3737.5,2.67558528]
[1753381809588,1.3078,3737.9,3737.7,2.6753793]
[1753381809758,1.3078,3737.9,3737.6,2.67551369]
[1753381809963,1.3078,3737.9,3737.7,2.67542613]
[1753381810163,0.54288,3737.8,3737.7,2.67542613]
[1753381810364,0.67648,3737.8,3737.5,0.4887]
[1753381810561,0.54288,3737.8,3737.7,2.67544211]
[1753381810752,0.002,3737.9,3737.8,2.67537053]
[1753381810953,0.002,3737.9,3737.8,3.62807053]
[1753381811185,0.1356,3737.9,3737.8,3.62807053]
[1753381811900,0.1356,3737.9,3737.8,4.41217053]
[1753381812884,0.1356,3737.9,3737.8,4.66106059]
[1753381813102,0.1356,3737.9,3737.8,6.07436815]
[1753381814392,0.002,3737.9,3737.8,6.07436815]
[1753381815121,0.002,3737.9,3737.8,10.19436815]
[1753381815881,0.002,3737.9,3737.8,18.51254215]
[1753381817213,0.002,3737.9,3737.8,24.52519767]
[1753381817605,0.91477615,3738.6,3738.3,2.67495844]
[1753381817829,0.66457194,3738.6,3738.4,0.73011334]
[1753381817993,0.66457194,3738.6,3738.5,3.4774696]
[1753381817994,0.79817194,3738.6,3738.5,3.4774696]
[1753381818197,0.66457194,3738.6,3738.5,3.75348198]
[1753381818379,0.66457194,3738.6,3738.5,4.67913329]
[1753381818816,0.002,3738.7,3738.6,2.67479805]
[1753381818987,0.002,3738.7,3738.6,11.31736624]
[1753381819197,0.002,3738.7,3738.6,15.43736624]
[1753381819791,0.002,3738.7,3738.6,15.43711358]
[1753381821128,0.1356,3739.3,3739.2,2.67436884]
[1753381821487,0.1356,3739.3,3739.2,3.62676884]
[1753381822933,0.1356,3739.3,3739.2,3.15516884]
[1753381823130,0.1356,3739.3,3739.2,2.67436884]
[1753381823504,0.2751,3739.3,3739.2,2.67436884]
[1753381823698,0.2751,3739.3,3738.8,4.119]
[1753381823699,0.808,3739.2,3738.5,4.119]
[1753381823926,0.4514,3739.1,3738.6,0.24864184]
[1753381824103,0.585,3739.1,3738.3,4.119]
[1753381824429,4.358,3739.2,3739.1,2.67444037]
[1753381824633,4.2605,3739.3,3739.1,2.67444037]
[1753381824634,0.1415,3739.3,3739.2,2.67436884]
[1753381824925,0.002,3739.3,3739.2,3.62676884]
[1753381825133,0.1356,3739.3,3739.2,3.62676884]
[1753381826130,0.002,3739.3,3739.2,4.41556884]
[1753381826655,0.002,3739.3,3739.2,2.67436884]
[1753381826817,0.1356,3739.3,3739.2,3.15516884]
[1753381827018,0.1356,3739.3,3739.2,3.62676884]
[1753381828019,0.1356,3739.3,3739.2,2.67436884]
[1753381828753,0.1356,3739.3,3739.1,2.6744268]
[1753381829045,0.002,3739.3,3739.1,2.67442103]
[1753381829250,0.1336,3739.2,3739.1,2.67442103]
[1753381831438,0.1336,3739.2,3739.1,3.15522103]
[1753381831845,0.1336,3739.2,3739.1,2.67442103]
[1753381832043,0.1336,3739.2,3738.6,4.5988]
[1753381832254,0.1336,3738.7,3738.6,7.27359805]
[1753381832627,0.1336,3738.7,3738.6,2.67479805]
[1753381832824,0.1336,3738.7,3738.6,7.74519805]
[1753381833030,0.002,3739.3,3739.2,2.67436884]
[1753381833449,0.002,3739.3,3739.2,3.65351252]
[1753381833760,0.002,3739.3,3739.2,13.78416804]
[1753381833972,0.002,3739.3,3739.2,13.75742436]
[1753381834168,0.002,3739.3,3739.2,9.47751682]
[1753381836167,0.002,3739.3,3739.2,2.67436884]
[1753381836327,0.1356,3739.3,3739.2,2.67436884]
[1753381838739,0.1356,3739.3,3739.2,3.15516884]
[1753381839141,0.002,3739.3,3739.2,4.43556884]
[1753381839657,0.002,3739.3,3739.2,4.46231252]
[1753381839858,0.002,3739.3,3739.2,10.31931487]
[1753381840061,0.002,3739.3,3739.2,10.29257119]
[1753381840639,0.002,3739.3,3739.2,9.01217119]
[1753381840839,0.1356,3739.3,3739.2,7.27216884]
[1753381842366,0.1356,3739.3,3739.2,7.74376884]
[1753381842664,0.1356,3739.3,3739.2,3.62676884]
[1753381843669,0.7206,3739.3,3738.9,2.67556937]
[1753381843871,0.585,3739.2,3739.0,2.67450782]
[1753381844032,0.1498,3739.3,3739.1,2.67443966]
[1753381844236,0.1336,3739.2,3738.9,2.67552143]
[1753381844536,0.002,3739.3,3739.2,2.67436884]
[1753381844764,0.1356,3739.3,3739.0,2.67448816]
[1753381845073,0.1336,3739.1,3739.0,2.67448816]
[1753381847978,0.002,3739.3,3739.2,2.67436884]
[1753381848368,0.1356,3739.3,3739.2,2.67436884]
[1753381848562,0.1356,3739.3,3739.2,3.57506884]
[1753381849703,0.1356,3739.3,3739.2,2.67436884]
[1753381850586,0.1356,3739.3,3739.2,3.13006884]
[1753381851297,0.1356,3739.3,3739.2,2.67436884]
[1753381852912,0.1356,3739.3,3739.2,3.13006884]
[1753381853773,0.1356,3739.3,3739.2,2.67436884]
[1753381854898,0.1356,3739.3,3739.2,3.13006884]
[1753381855257,0.1356,3739.3,3739.2,2.67436884]
[1753381856715,0.1356,3739.3,3739.2,3.13006884]
[1753381858813,0.1356,3739.3,3739.2,2.67436884]
[1753381860388,0.1356,3739.3,3738.9,0.001]
[1753381860721,0.1336,3739.0,3738.9,0.001]
[1753381861042,4.62195195,3739.0,3738.9,0.001]
[1753381861217,8.44841158,3739.0,3738.9,0.001]
[1753381861415,9.02531854,3739.0,3738.9,0.001]
[1753381861730,9.1756487,3739.0,3738.9,0.001]
[1753381862098,9.0420487,3739.0,3738.9,0.001]
[1753381862349,9.1756487,3739.0,3738.9,0.001]
[1753381862553,10.13634052,3739.0,3738.9,0.001]
[1753381863240,9.1756487,3739.0,3738.9,0.001]
[1753381864298,9.89554987,3739.0,3738.9,0.001]
[1753381864499,6.64523688,3739.0,3738.9,0.001]
[1753381864737,8.85355963,3739.0,3738.9,0.001]
[1753381865050,12.83080205,3739.0,3738.9,0.001]
[1753381865231,13.55070323,3739.0,3738.9,0.001]
[1753381865437,12.68077849,3739.0,3738.9,0.001]
[1753381866052,9.87266659,3739.0,3738.9,0.001]
[1753381866220,11.46699971,3739.0,3738.9,0.001]
[1753381867635,14.14151161,3739.0,3738.9,0.001]
[1753381867858,11.46699971,3739.0,3738.9,0.001]
[1753381868545,6.90879971,3739.0,3738.9,0.001]
[1753381868740,0.96116659,3739.0,3738.9,3.13128343]
[1753381869069,0.1336,3739.0,3738.9,11.89201043]
[1753381869824,0.002,3739.2,3739.1,2.67444037]
[1753381870128,0.002,3739.2,3739.1,2.70118477]
[1753381870467,0.002,3739.2,3739.1,5.75560786]
[1753381870774,0.002,3739.2,3739.1,5.72886346]
[1753381872865,0.002,3739.2,3739.1,6.54196346]
[1753381873161,1e-08,3739.2,3739.1,6.54196346]
[1753381874320,1e-08,3739.2,3739.1,10.65796346]
[1753381874565,1e-08,3739.2,3739.1,6.54196346]
[1753381874769,1e-08,3739.2,3739.1,10.65696346]
[1753381875279,1e-08,3739.2,3739.1,6.54196346]
[1753381875463,1e-08,3739.2,3739.1,10.65696346]
[1753381877323,1e-08,3739.2,3739.1,4.38824037]
[1753381877524,1e-08,3739.2,3739.1,2.67444037]
[1753381877962,1e-08,3739.2,3739.1,3.60224037]
[1753381878340,1e-08,3739.2,3739.1,7.71724037]
[1753381878926,1e-08,3739.2,3739.1,3.60224037]
[1753381879135,1e-08,3739.2,3739.1,7.71724037]
[1753381879326,1e-08,3739.2,3739.1,9.27007545]
[1753381879633,1e-08,3739.2,3739.1,10.03937545]
[1753381879826,1e-08,3739.2,3739.1,10.17297545]
[1753381883069,1e-08,3739.2,3739.1,6.05797545]
[1753381883255,1e-08,3739.2,3739.1,10.17197545]
[1753381887469,1e-08,3739.2,3739.1,10.17297545]
[1753381888758,1e-08,3739.2,3739.1,13.17297545]
[1753381892491,0.46480054,3740.4,3739.9,3.42976828]
[1753381892790,0.46480054,3740.4,3740.3,2.67358233]
[1753381892994,0.46480054,3740.4,3740.3,6.78658233]
[1753381894088,0.46480054,3740.4,3739.5,1.7039]
[1753381894265,0.7858,3740.3,3740.2,2.67358341]
[1753381894466,0.7858,3740.3,3740.2,6.78658341]
[1753381894467,1.244,3740.3,3740.2,6.78658341]
[1753381894789,1.3776,3740.3,3740.1,2.67371863]
[1753381894972,1.11700005,3740.3,3740.1,2.67371863]
[1753381895173,0.5918,3740.2,3740.1,2.67371863]
[1753381895893,0.1336,3740.2,3740.1,2.67371863]
[1753381896201,0.59840054,3740.4,3740.3,2.67358233]
[1753381897096,0.7876,3741.1,3741.0,2.67308206]
[1753381897297,0.1336,3741.1,3741.0,2.67308206]
[1753381898161,0.1336,3741.1,3741.0,3.13658206]
[1753381898360,0.71990118,3741.4,3741.3,2.67286771]
[1753381898779,0.85350118,3741.4,3741.3,2.67286771]
[1753381899060,1.1494893,3741.4,3741.3,2.67286771]
[1753381899371,0.8926,3741.4,3741.3,2.67286771]
[1753381899576,0.46990118,3741.9,3741.3,2.67286771]
[1753381899788,0.24952513,3742.3,3742.2,2.67222489]
[1753381899965,1.2264,3742.7,3742.4,2.67202977]
[1753381900275,0.1336,3742.5,3742.4,2.67202977]
[1753381900471,1.12386918,3742.5,3742.3,2.67215324]
[1753381900671,0.99026918,3742.5,3742.3,2.67215324]
[1753381900896,0.5918,3742.4,3742.1,2.67223832]
[1753381901093,0.4582,3742.3,3742.0,2.67230085]
[1753381901293,0.4582,3742.3,3741.7,2.67258198]
[1753381901294,0.1336,3742.0,3741.9,2.67243913]
[1753381902104,0.96069182,3742.8,3742.5,0.7514]
[1753381902265,1.44311354,3743.1,3742.5,0.7514]
[1753381902266,0.1336,3743.0,3742.9,2.67172513]
[1753381903490,0.7704,3743.5,3743.3,2.67142422]
[1753381903690,0.21892918,3743.4,3743.3,2.67142422]
[1753381903890,0.35252918,3743.4,3743.3,2.67142422]
[1753381904677,0.35252918,3743.4,3743.2,2.67150326]
[1753381904877,0.21892918,3743.4,3743.1,2.67152833]
[1753381905276,1.12464764,3743.7,3743.2,2.67151071]
[1753381905625,0.4327,3743.6,3743.1,2.67157225]
[1753381905908,0.1336,3743.1,3743.0,2.67165375]
[1753381906273,0.1336,3743.1,3743.0,3.13105375]
[1753381906895,0.1336,3743.1,3743.0,2.67165375]
[1753381907412,1.458,3743.1,3742.6,2.67191574]
[1753381907632,1.458,3743.1,3742.9,2.67172513]
[1753381907633,0.1458,3743.0,3742.9,2.67172513]
[1753381907771,7.11,3743.4,3743.1,2.67156365]
[1753381907975,0.1336,3743.2,3742.5,1.2177]
[1753381908214,0.4327,3743.3,3742.5,1.2177]
[1753381908215,0.1336,3742.9,3742.7,2.67184775]
[1753381908384,0.1336,3742.9,3742.8,2.67179651]
[1753381910630,0.7581,3742.8,3742.2,0.4594]
[1753381910835,0.7581,3742.8,3741.9,2.67243913]
[1753381911013,3.7581,3742.3,3741.7,2.67256298]
[1753381911326,0.1336,3741.8,3741.7,2.67258198]
[1753381911491,0.7581,3742.3,3742.2,2.67222489]
[1753381911691,4.8681,3742.3,3742.2,2.67222489]
[1753381911915,0.8917,3742.3,3742.2,2.67222489]
[1753381912119,0.1336,3742.3,3742.2,3.13162489]
[1753381912321,0.1336,3742.3,3742.2,3.60252489]
[1753381912515,0.7581,3742.7,3742.6,2.67193929]
[1753381912516,4.8681,3742.7,3742.6,2.67193929]
[1753381912829,4.11,3743.3,3743.2,2.67148714]
[1753381913163,0.48716,3743.3,3743.2,2.67148714]
[1753381913354,0.7596,3743.5,3743.4,2.67136827]
[1753381913653,5.0042,3743.5,3743.4,2.67136827]
[1753381913851,5.0042,3743.5,3743.2,0.4594]
[1753381914037,4.8706,3743.5,3743.3,2.67142993]
[1753381914216,5.1363,3743.5,3743.0,2.67159083]
[1753381914417,0.1336,3743.2,3742.3,4.11]
[1753381914619,0.1336,3742.7,3742.6,2.67193929]
[1753381914817,0.1336,3742.7,3742.4,2.67208208]
[1753381915028,0.7785,3742.8,3742.5,2.67198893]
[1753381915230,1.0442,3742.8,3742.4,2.67206484]
[1753381915427,0.1336,3742.3,3742.2,2.6721921]
[1753381916449,0.1336,3742.3,3742.1,2.67228834]
[1753381916655,0.3993,3742.7,3742.1,2.67228834]
[1753381916968,0.1336,3742.2,3742.1,2.67228834]
[1753381917264,0.7624,3742.1,3741.2,4.2486]
[1753381917468,0.8174,3741.9,3741.3,2.67285528]
[1753381917774,0.1336,3741.4,3741.1,2.67295417]
[1753381917947,0.8174,3741.3,3741.1,2.67295417]
[1753381918141,0.1336,3741.2,3741.1,2.67295417]
[1753381918669,0.1336,3741.2,3741.1,2.67301061]
[1753381918866,0.1336,3741.2,3740.8,2.67317274]
[1753381919168,0.1336,3741.2,3740.1,2.67366432]
[1753381919169,0.8078,3740.9,3740.1,2.67367643]
[1753381919343,0.8078,3740.9,3739.5,3.47515429]
[1753381919344,4.121,3740.8,3740.4,2.67344908]
[1753381919665,0.8078,3740.9,3740.1,2.6737253]
[1753381919666,0.1336,3740.2,3740.1,2.6737253]
[1753381920033,0.1336,3740.2,3740.1,3.1446253]
[1753381920232,0.8078,3740.9,3740.1,3.1446253]
[1753381920233,4.121,3740.6,3740.5,2.67343937]
[1753381920475,4.121,3740.6,3740.5,3.13283937]
[1753381920762,4.2546,3740.6,3740.5,2.67343937]
[1753381920964,4.6873,3740.6,3739.9,2.67384293]
[1753381921163,4.5537,3740.6,3740.4,2.67347016]
[1753381921341,4.67051,3740.6,3740.4,2.67347016]
[1753381921541,0.1336,3740.5,3740.4,2.67347016]
[1753381921938,2.67229094,3742.2,3740.4,2.67347016]
[1753381921939,0.82,3741.4,3741.2,2.67291367]
[1753381922139,4.2546,3741.3,3741.0,2.67308206]
[1753381922338,0.1336,3741.0,3740.8,2.67321694]
[1753381923157,0.82,3740.8,3740.0,8.766906]
[1753381923363,0.1336,3740.6,3740.5,2.67342188]
[1753381923667,0.1336,3740.6,3740.4,2.67350867]
[1753381923839,0.1336,3740.3,3740.0,8.766906]
[1753381924171,0.1336,3740.3,3740.2,2.67365381]
[1753381924972,0.1336,3740.3,3740.0,8.307506]
[1753381925276,0.1336,3740.1,3740.0,10.98130279]
[1753381925479,0.1336,3740.1,3740.0,8.307506]
[1753381925771,0.1336,3740.1,3740.0,10.98130279]
[1753381926157,0.1336,3740.1,3740.0,8.307506]
[1753381926351,0.1336,3740.1,3740.0,10.98130279]
[1753381926860,0.82,3740.8,3740.4,2.67350924]
[1753381927061,4.127,3740.7,3740.3,2.67357055]
[1753381927442,0.1336,3740.4,3740.3,2.67357055]
[1753381929070,0.1336,3740.4,3740.0,8.766906]
[1753381929071,0.1336,3740.4,3740.0,8.307506]
[1753381929273,4.127,3740.7,3740.3,2.67358233]
[1753381929772,0.1336,3740.4,3740.2,2.6736436]
[1753381930073,0.55,3740.1,3740.0,8.307506]
[1753381930264,4.676,3740.1,3740.0,8.307506]
[1753381930573,5.4492,3740.1,3740.0,8.307506]
[1753381930777,11.6892253,3740.1,3740.0,8.307506]
[1753381931483,12.91605283,3740.1,3740.0,8.307506]
[1753381931776,14.01231494,3740.1,3740.0,8.307506]
[1753381932943,14.58434118,3740.1,3740.0,8.307506]
[1753381933876,14.58434118,3740.1,3739.1,0.001]
[1753381933877,3.98196884,3739.2,3739.1,0.001]
[1753381934046,11.25556884,3739.2,3739.1,0.001]
[1753381934448,13.06491847,3739.2,3739.1,0.001]
[1753381934678,8.92491847,3739.2,3739.1,0.001]
[1753381934878,10.39454963,3739.2,3739.1,0.001]
[1753381935046,5.68424963,3739.2,3739.1,0.001]
[1753381935570,9.82924963,3739.2,3739.1,0.001]
[1753381936158,10.29064963,3739.2,3739.1,0.001]
[1753381936369,6.27924963,3739.2,3739.1,0.001]
[1753381936572,10.29164963,3739.2,3739.1,0.001]
[1753381936948,6.27924963,3739.2,3739.1,0.001]
[1753381937148,10.42524963,3739.2,3739.1,0.001]
[1753381937345,5.68424963,3739.2,3739.1,0.001]
[1753381937581,9.83124963,3739.2,3739.1,0.001]
[1753381937750,5.68424963,3739.2,3739.1,2.67544037]
[1753381937949,1.37664963,3739.2,3739.1,4.1700397]
[1753381938371,5.39304963,3739.2,3739.1,4.9507841]
[1753381938572,0.1336,3739.5,3739.4,2.67422581]
[1753381938884,4.2836,3739.5,3739.2,0.9142]
[1753381939086,0.1336,3739.3,3739.1,0.001]
[1753381939246,11.12696884,3739.2,3739.1,0.001]
[1753381939588,11.72196884,3739.2,3739.1,0.001]
[1753381941682,0.7843,3739.1,3738.3,0.001]
[1753381941988,7.00924115,3738.4,3738.3,0.001]
[1753381942151,18.25584115,3738.4,3738.3,0.001]
[1753381942487,18.85084115,3738.4,3738.3,0.001]
[1753381942972,19.42189379,3738.4,3738.3,0.001]
[1753381943490,19.42889379,3738.4,3738.3,0.001]
[1753381944184,7.05058426,3738.2,3738.1,1e-08]
[1753381944385,11.34618426,3738.2,3738.1,1e-08]
[1753381944568,12.5122369,3738.2,3738.1,1e-08]
[1753381944960,12.5122369,3738.2,3737.8,1e-08]
[1753381944961,3.22529896,3737.9,3737.8,1e-08]
[1753381945161,11.34739896,3737.9,3737.8,1e-08]
[1753381945366,12.5134516,3737.9,3737.8,1e-08]
[1753381947073,8.3504516,3737.9,3737.8,1e-08]
[1753381947273,12.5124516,3737.9,3737.8,1e-08]
[1753381947484,6.3799516,3737.9,3737.8,1e-08]
[1753381947791,3.1336,3737.9,3737.8,1e-08]
[1753381947961,7.8456,3737.9,3737.8,1e-08]
[1753381948396,10.52089896,3737.9,3737.8,1e-08]